[Event "Live Chess"]
[Site "Chess.com"]
[Date "2023.05.20"]
[Round "-"]
[White "Pablo_dmp"]
[Black "LiamClery2020"]
[Result "0-1"]
[WhiteElo "1881"]
[BlackElo "2086"]
[TimeControl "300"]
[EndTime "13:34:48 PDT"]
[Termination "LiamClery2020 won by resignation"]

1. e4 {[%clk 0:04:59.5]} 1... Nf6 {[%clk 0:04:58.8]} 2. e5 {[%clk 0:04:58.3]}
2... Nd5 {[%clk 0:04:56.1]} 3. c4 {[%clk 0:04:57.8]} 3... Nb6 {[%clk 0:04:54.3]}
4. a4 {[%clk 0:04:57.5]} 4... a5 {[%clk 0:04:50.5]} 5. Ra3 {[%clk 0:04:52.6]}
5... d6 {[%clk 0:04:47.2]} 6. exd6 {[%clk 0:04:50.4]} 6... cxd6 {[%clk
0:04:45.7]} 7. Rg3 {[%clk 0:04:49.6]} 7... Nc6 {[%clk 0:04:41]} 8. Nc3 {[%clk
0:04:47.2]} 8... e5 {[%clk 0:04:39.5]} 9. Bd3 {[%clk 0:04:39.1]} 9... Nb4 {[%clk
0:04:35.9]} 10. Bb1 {[%clk 0:04:36.9]} 10... Nxc4 {[%clk 0:04:33.8]} 11. b3
{[%clk 0:04:33.8]} 11... Nb6 {[%clk 0:04:30.4]} 12. d4 {[%clk 0:04:29.6]} 12...
Be6 {[%clk 0:04:25.4]} 13. dxe5 {[%clk 0:04:26.7]} 13... dxe5 {[%clk 0:04:21.8]}
14. Qxd8+ {[%clk 0:04:13.7]} 14... Rxd8 {[%clk 0:04:21.7]} 15. Nge2 {[%clk
0:04:11.3]} 15... Bxb3 {[%clk 0:04:18.7]} 16. O-O {[%clk 0:04:09.5]} 16... Be6
{[%clk 0:04:17]} 17. Be3 {[%clk 0:04:05.6]} 17... Nc4 {[%clk 0:04:12.5]} 18. Bc1
{[%clk 0:04:00.3]} 18... g6 {[%clk 0:04:06.2]} 19. Nb5 {[%clk 0:03:59]} 19...
Na6 {[%clk 0:03:56.6]} 20. f4 {[%clk 0:03:56.7]} 20... Bg7 {[%clk 0:03:51.5]}
21. f5 {[%clk 0:03:50.8]} 21... Bd5 {[%clk 0:03:45.8]} 22. f6 {[%clk 0:03:41.4]}
22... Bf8 {[%clk 0:03:43.8]} 23. Nec3 {[%clk 0:03:40.7]} 23... Bc5+ {[%clk
0:03:42.3]} 24. Kh1 {[%clk 0:03:38.9]} 24... Be6 {[%clk 0:03:40.8]} 25. Bh6
{[%clk 0:03:34.9]} 25... Nd2 {[%clk 0:03:33.3]} 26. Rd1 {[%clk 0:03:25.8]} 26...
Nxb1 {[%clk 0:03:32]} 27. Rxb1 {[%clk 0:03:19.9]} 27... Bb4 {[%clk 0:03:25.6]}
28. Ne4 {[%clk 0:03:17.4]} 28... Bf5 {[%clk 0:03:22.1]} 29. Ned6+ {[%clk
0:03:13.5]} 29... Bxd6 {[%clk 0:03:19.8]} 30. Rd1 {[%clk 0:03:09]} 30... Bc7
{[%clk 0:03:14.7]} 31. Rc1 {[%clk 0:03:07.1]} 31... Bb6 {[%clk 0:03:11.8]} 32.
Bg7 {[%clk 0:03:01.5]} 32... Rg8 {[%clk 0:03:08.4]} 33. Re1 {[%clk 0:03:01.4]}
33... Rd5 {[%clk 0:03:02.5]} 34. Rc3 {[%clk 0:02:57.2]} 34... Nc5 {[%clk
0:02:57.2]} 35. Rc4 {[%clk 0:02:51.1]} 35... Bd3 {[%clk 0:02:54.4]} 36. Rh4
{[%clk 0:02:43.6]} 36... Bxb5 {[%clk 0:02:50.1]} 37. axb5 {[%clk 0:02:43.5]}
37... Nd3 {[%clk 0:02:44.4]} 38. Rf1 {[%clk 0:02:37.3]} 38... Nf2+ {[%clk
0:02:39.3]} 39. Kg1 {[%clk 0:02:35.9]} 39... Rd1 {[%clk 0:02:31.8]} 40. Rxd1
{[%clk 0:02:33.6]} 40... Nxd1+ {[%clk 0:02:31.7]} 41. Kf1 {[%clk 0:02:33.3]}
41... Ne3+ {[%clk 0:02:27.5]} 42. Ke2 {[%clk 0:02:28.1]} 42... Nf5 {[%clk
0:02:26.6]} 43. Rxh7 {[%clk 0:02:26.4]} 43... Nxg7 {[%clk 0:02:21.5]} 44. fxg7
{[%clk 0:02:24.1]} 44... Ke7 {[%clk 0:02:18]} 45. g4 {[%clk 0:02:16.3]} 45...
Kf6 {[%clk 0:02:13.8]} 46. g5+ {[%clk 0:02:14]} 46... Kxg5 {[%clk 0:02:12.6]}
47. h4+ {[%clk 0:02:11.8]} 47... Kf6 {[%clk 0:02:11.2]} 48. h5 {[%clk 0:02:11]}
48... Rxg7 {[%clk 0:02:07.4]} 49. hxg6 {[%clk 0:02:09.1]} 49... Rxh7 {[%clk
0:02:05.3]} 50. gxh7 {[%clk 0:02:09]} 50... Kg7 {[%clk 0:02:04.4]} 51. Kd3
{[%clk 0:02:07.2]} 51... Kxh7 {[%clk 0:02:03.7]} 52. Ke4 {[%clk 0:02:07.1]}
52... f6 {[%clk 0:02:02.7]} 53. Kf5 {[%clk 0:02:06.2]} 53... a4 {[%clk
0:02:01.7]} 54. Ke4 {[%clk 0:02:06.1]} 54... a3 {[%clk 0:02:00.6]} 0-1

[Event "Live Chess"]
[Site "Chess.com"]
[Date "2023.05.20"]
[Round "-"]
[White "howitzer14"]
[Black "lightningorderyt"]
[Result "1-0"]
[WhiteElo "2903"]
[BlackElo "522"]
[TimeControl "300"]
[EndTime "13:34:54 PDT"]
[Termination "howitzer14 won by resignation"]

1. b4 {[%clk 0:04:56.5]} 1... e5 {[%clk 0:04:57]} 2. Bb2 {[%clk 0:04:55.8]} 2...
g6 {[%clk 0:04:55.6]} 3. Bxe5 {[%clk 0:04:53.9]} 3... Nf6 {[%clk 0:04:48.9]} 4.
a3 {[%clk 0:04:50.3]} 4... d6 {[%clk 0:04:43.6]} 5. Bb2 {[%clk 0:04:49.2]} 5...
Nc6 {[%clk 0:04:41.4]} 6. Nf3 {[%clk 0:04:46.7]} 6... Bf5 {[%clk 0:04:30.1]} 7.
g3 {[%clk 0:04:41.7]} 7... Qe7 {[%clk 0:04:23.5]} 8. Bg2 {[%clk 0:04:39.1]} 8...
Qe4 {[%clk 0:04:10.1]} 9. Bxf6 {[%clk 0:04:32.2]} 9... Qxc2 {[%clk 0:04:03.9]}
10. Qxc2 {[%clk 0:04:29]} 10... Bxc2 {[%clk 0:04:02.2]} 11. Bxh8 {[%clk
0:04:28.9]} 11... a5 {[%clk 0:03:51.7]} 12. b5 {[%clk 0:04:23.7]} 12... Na7
{[%clk 0:03:41.4]} 13. Nd4 {[%clk 0:04:22.4]} 13... c6 {[%clk 0:03:34.2]} 14.
Nxc2 {[%clk 0:04:20.6]} 14... O-O-O {[%clk 0:03:16.7]} 15. b6 {[%clk 0:04:14.8]}
15... Nb5 {[%clk 0:03:13.4]} 16. a4 {[%clk 0:04:07.8]} 16... Na7 {[%clk
0:02:34.8]} 17. bxa7 {[%clk 0:04:06.5]} 17... Kd7 {[%clk 0:02:30.2]} 18. Nc3
{[%clk 0:03:57.2]} 18... Ra8 {[%clk 0:02:27.8]} 19. Bd4 {[%clk 0:03:55.6]} 19...
c5 {[%clk 0:02:22.4]} 20. Bf6 {[%clk 0:03:48.1]} 20... Be7 {[%clk 0:02:16.9]}
21. Bxe7 {[%clk 0:03:46.1]} 21... Kxe7 {[%clk 0:02:15.8]} 22. Nb5 {[%clk
0:03:46]} 22... c4 {[%clk 0:02:07.8]} 23. Bxb7 {[%clk 0:03:44.2]} 23... Rb8
{[%clk 0:02:00.2]} 24. axb8=Q {[%clk 0:03:42.6]} 1-0

[Event "Live Chess"]
[Site "Chess.com"]
[Date "2023.05.20"]
[Round "-"]
[White "diana21strabt"]
[Black "KGreenGator"]
[Result "1-0"]
[WhiteElo "1683"]
[BlackElo "1779"]
[TimeControl "300"]
[EndTime "13:35:02 PDT"]
[Termination "diana21strabt won by checkmate"]

1. e4 {[%clk 0:04:53.6]} 1... c5 {[%clk 0:04:58.3]} 2. Nf3 {[%clk 0:04:51.8]}
2... Nc6 {[%clk 0:04:57.1]} 3. d4 {[%clk 0:04:50.8]} 3... cxd4 {[%clk
0:04:55.8]} 4. Nxd4 {[%clk 0:04:49.4]} 4... e5 {[%clk 0:04:54.9]} 5. Nxc6 {[%clk
0:04:47.2]} 5... bxc6 {[%clk 0:04:53.5]} 6. Bc4 {[%clk 0:04:46.2]} 6... Nf6
{[%clk 0:04:51.4]} 7. Nc3 {[%clk 0:04:44.9]} 7... Be7 {[%clk 0:04:49.4]} 8. O-O
{[%clk 0:04:43.4]} 8... O-O {[%clk 0:04:48.5]} 9. f4 {[%clk 0:04:42.3]} 9... d6
{[%clk 0:04:46.4]} 10. fxe5 {[%clk 0:04:41.3]} 10... dxe5 {[%clk 0:04:45.5]} 11.
Qf3 {[%clk 0:04:36.6]} 11... Bg4 {[%clk 0:04:40.6]} 12. Qg3 {[%clk 0:04:33.3]}
12... Bc5+ {[%clk 0:04:35.5]} 13. Kh1 {[%clk 0:04:31.2]} 13... Bd4 {[%clk
0:04:20.9]} 14. Bg5 {[%clk 0:04:22.8]} 14... Bxc3 {[%clk 0:03:53.2]} 15. bxc3
{[%clk 0:04:17]} 15... Nxe4 {[%clk 0:03:51.9]} 16. Qxg4 {[%clk 0:03:57.6]} 16...
Nxg5 {[%clk 0:03:50]} 17. Rad1 {[%clk 0:03:54.1]} 17... Qe7 {[%clk 0:03:47.4]}
18. Rd7 {[%clk 0:03:52]} 18... Qc5 {[%clk 0:03:41.7]} 19. Bb3 {[%clk 0:03:24.9]}
19... e4 {[%clk 0:03:22.4]} 20. h4 {[%clk 0:03:17.5]} 20... Ne6 {[%clk
0:03:12.9]} 21. Bxe6 {[%clk 0:03:16]} 21... fxe6 {[%clk 0:03:10.9]} 22. Qxg7#
{[%clk 0:03:14.9]} 1-0

[Event "Live Chess"]
[Site "Chess.com"]
[Date "2023.05.20"]
[Round "-"]
[White "raminguy"]
[Black "Fazer180"]
[Result "1-0"]
[WhiteElo "1976"]
[BlackElo "1747"]
[TimeControl "300"]
[EndTime "13:35:12 PDT"]
[Termination "raminguy won on time"]

1. d4 {[%clk 0:04:59.2]} 1... e6 {[%clk 0:04:59.9]} 2. Nc3 {[%clk 0:04:58]} 2...
d5 {[%clk 0:04:59.8]} 3. Bf4 {[%clk 0:04:57]} 3... Bd6 {[%clk 0:04:58.5]} 4. e3
{[%clk 0:04:55.8]} 4... Bxf4 {[%clk 0:04:56.5]} 5. exf4 {[%clk 0:04:55.7]} 5...
Nf6 {[%clk 0:04:55.6]} 6. Nf3 {[%clk 0:04:53.9]} 6... Nc6 {[%clk 0:04:53.1]} 7.
Ne5 {[%clk 0:04:51.1]} 7... Nxe5 {[%clk 0:04:50.6]} 8. fxe5 {[%clk 0:04:49]}
8... Nd7 {[%clk 0:04:47.9]} 9. Bd3 {[%clk 0:04:45.4]} 9... c5 {[%clk 0:04:42]}
10. Nb5 {[%clk 0:04:37.5]} 10... O-O {[%clk 0:04:35]} 11. c3 {[%clk 0:04:33.7]}
11... cxd4 {[%clk 0:04:32.5]} 12. cxd4 {[%clk 0:04:32.1]} 12... a6 {[%clk
0:04:22.6]} 13. Nc3 {[%clk 0:04:29.6]} 13... Qb6 {[%clk 0:04:20.6]} 14. Qh5
{[%clk 0:04:09.8]} 14... g6 {[%clk 0:03:57.9]} 15. Qd1 {[%clk 0:03:12.6]} 15...
Qxd4 {[%clk 0:03:47.2]} 16. O-O {[%clk 0:03:10.1]} 16... Qxe5 {[%clk 0:03:42]}
17. Re1 {[%clk 0:03:07.6]} 17... Qd6 {[%clk 0:03:31.6]} 18. Re3 {[%clk
0:03:05.7]} 18... d4 {[%clk 0:03:22.2]} 19. Rh3 {[%clk 0:03:00.3]} 19... dxc3
{[%clk 0:03:07.3]} 20. Rxh7 {[%clk 0:02:58.8]} 20... cxb2 {[%clk 0:02:49]} 21.
Rb1 {[%clk 0:02:56]} 21... Nf6 {[%clk 0:02:37.5]} 22. Rh3 {[%clk 0:02:37.6]}
22... Rd8 {[%clk 0:02:31.5]} 23. Qb3 {[%clk 0:02:28.4]} 23... b5 {[%clk
0:02:18.9]} 24. Qxb2 {[%clk 0:02:27.1]} 24... Qd4 {[%clk 0:02:12.6]} 25. Qc1
{[%clk 0:02:11.2]} 25... e5 {[%clk 0:01:44.7]} 26. Rg3 {[%clk 0:02:09.2]} 26...
Nh5 {[%clk 0:01:36.3]} 27. Rg5 {[%clk 0:01:08.1]} 27... Nf4 {[%clk 0:01:11.4]}
28. Bf1 {[%clk 0:01:00.8]} 28... Bb7 {[%clk 0:01:00.1]} 29. Qc7 {[%clk
0:00:53.9]} 29... Qd5 {[%clk 0:00:40.7]} 30. Rxe5 {[%clk 0:00:49.5]} 30... Nh3+
{[%clk 0:00:34]} 31. Kh1 {[%clk 0:00:45.5]} 31... Nxf2+ {[%clk 0:00:32.3]} 32.
Kg1 {[%clk 0:00:44.6]} 32... Nh3+ {[%clk 0:00:24.8]} 33. Kh1 {[%clk 0:00:43.3]}
33... Qd7 {[%clk 0:00:19.8]} 34. Qxd7 {[%clk 0:00:19]} 34... Rxd7 {[%clk
0:00:19.7]} 35. Re3 {[%clk 0:00:17.1]} 35... Nf4 {[%clk 0:00:18.4]} 36. Rbe1
{[%clk 0:00:13.4]} 36... Ne6 {[%clk 0:00:16.9]} 37. Kg1 {[%clk 0:00:10.8]} 37...
Rd2 {[%clk 0:00:15.9]} 38. Re5 {[%clk 0:00:08.7]} 38... Rad8 {[%clk 0:00:15.2]}
39. R5e3 {[%clk 0:00:07.4]} 39... Rxa2 {[%clk 0:00:14.2]} 40. Re5 {[%clk
0:00:07]} 40... Rb2 {[%clk 0:00:13.6]} 41. R5e3 {[%clk 0:00:06.2]} 41... b4
{[%clk 0:00:13]} 42. Rg3 {[%clk 0:00:05.9]} 42... a5 {[%clk 0:00:12]} 43. Rg4
{[%clk 0:00:03.5]} 43... a4 {[%clk 0:00:08.6]} 44. Rc4 {[%clk 0:00:03.2]} 44...
a3 {[%clk 0:00:07.8]} 45. Rc7 {[%clk 0:00:02.6]} 45... Bd5 {[%clk 0:00:04.9]}
46. Ra7 {[%clk 0:00:02.5]} 46... a2 {[%clk 0:00:03.4]} 47. Rxa2 {[%clk
0:00:02.1]} 47... Rxa2 {[%clk 0:00:02.2]} 48. Rxe6 {[%clk 0:00:01.8]} 48... Ra5
{[%clk 0:00:01.4]} 49. Rd6 {[%clk 0:00:01.7]} 49... Rxd6 {[%clk 0:00:00.1]} 50.
Be2 {[%clk 0:00:00.5]} 1-0

[Event "Live Chess"]
[Site "Chess.com"]
[Date "2023.05.20"]
[Round "-"]
[White "ChessTWSS"]
[Black "ameetghasi100"]
[Result "0-1"]
[WhiteElo "1681"]
[BlackElo "2686"]
[TimeControl "300"]
[EndTime "13:35:24 PDT"]
[Termination "ameetghasi100 won on time"]

1. d4 {[%clk 0:04:54.3]} 1... Nf6 {[%clk 0:04:58.3]} 2. Bf4 {[%clk 0:04:49.7]}
2... e6 {[%clk 0:04:58.2]} 3. Nf3 {[%clk 0:04:44.3]} 3... d6 {[%clk 0:04:57.4]}
4. e3 {[%clk 0:04:39.8]} 4... Nbd7 {[%clk 0:04:57.3]} 5. c3 {[%clk 0:04:32.4]}
5... g6 {[%clk 0:04:57.2]} 6. Nbd2 {[%clk 0:04:26.6]} 6... h6 {[%clk 0:04:57.1]}
7. Bd3 {[%clk 0:04:20.2]} 7... Nh5 {[%clk 0:04:57]} 8. h4 {[%clk 0:04:13]} 8...
Bg7 {[%clk 0:04:56.9]} 9. Bh2 {[%clk 0:04:04.2]} 9... Nf4 {[%clk 0:04:56.8]} 10.
Bxf4 {[%clk 0:03:57.5]} 10... Qe7 {[%clk 0:04:54.8]} 11. e4 {[%clk 0:03:50.4]}
11... a5 {[%clk 0:04:51.4]} 12. e5 {[%clk 0:03:36.8]} 12... d5 {[%clk
0:04:49.8]} 13. c4 {[%clk 0:03:24.3]} 13... c6 {[%clk 0:04:43.6]} 14. cxd5
{[%clk 0:03:17]} 14... exd5 {[%clk 0:04:43.5]} 15. O-O {[%clk 0:03:07.6]} 15...
Nf8 {[%clk 0:04:42.7]} 16. a3 {[%clk 0:02:48.3]} 16... Ne6 {[%clk 0:04:40.9]}
17. Bh2 {[%clk 0:02:34.5]} 17... g5 {[%clk 0:04:38.3]} 18. hxg5 {[%clk
0:02:28.7]} 18... hxg5 {[%clk 0:04:38.2]} 19. Bf5 {[%clk 0:02:19.1]} 19... Bd7
{[%clk 0:04:30.2]} 20. Bxe6 {[%clk 0:02:10.5]} 20... Bxe6 {[%clk 0:04:28.2]} 21.
g3 {[%clk 0:01:45.1]} 21... O-O-O {[%clk 0:04:14.7]} 22. b4 {[%clk 0:01:26.7]}
22... g4 {[%clk 0:03:58.5]} 23. Nh4 {[%clk 0:01:20.8]} 23... Rxh4 {[%clk
0:03:57.6]} 24. gxh4 {[%clk 0:01:15.3]} 24... Qxh4 {[%clk 0:03:57.5]} 25. Bg3
{[%clk 0:00:58]} 25... Qh3 {[%clk 0:03:55.1]} 26. Qe1 {[%clk 0:00:51]} 26... Rh8
{[%clk 0:03:51.1]} 27. f3 {[%clk 0:00:43.4]} 27... Bh6 {[%clk 0:03:33.8]} 28.
Kf2 {[%clk 0:00:34.9]} 28... gxf3 {[%clk 0:03:22.1]} 29. Nxf3 {[%clk 0:00:31.4]}
29... Qf5 {[%clk 0:03:18.7]} 30. bxa5 {[%clk 0:00:25.2]} 30... Rg8 {[%clk
0:03:14.9]} 31. Rh1 {[%clk 0:00:16.7]} 31... Bf8 {[%clk 0:02:54]} 32. Rh2 {[%clk
0:00:13.7]} 32... Qd3 {[%clk 0:02:51.2]} 33. Qd1 {[%clk 0:00:09.9]} 33... Qc3
{[%clk 0:02:46.5]} 34. Qc1 {[%clk 0:00:09]} 34... Qd3 {[%clk 0:02:39.5]} 35. Qd1
{[%clk 0:00:08.4]} 35... Qg6 {[%clk 0:02:39]} 36. Qb1 {[%clk 0:00:06.9]} 36...
Qxg3+ {[%clk 0:02:37.1]} 37. Ke3 {[%clk 0:00:05]} 37... Bg4 {[%clk 0:02:37]} 38.
Qf1 {[%clk 0:00:02.7]} 38... Bxf3 {[%clk 0:02:33.8]} 39. Qxf3 {[%clk 0:00:01.8]}
39... Qxh2 {[%clk 0:02:32.3]} 0-1

[Event "Live Chess"]
[Site "Chess.com"]
[Date "2023.05.20"]
[Round "-"]
[White "birdseed45"]
[Black "chessfiction"]
[Result "0-1"]
[WhiteElo "1873"]
[BlackElo "2420"]
[TimeControl "300"]
[EndTime "13:35:24 PDT"]
[Termination "chessfiction won by resignation"]

1. e4 {[%clk 0:04:58]} 1... e6 {[%clk 0:04:57.7]} 2. d4 {[%clk 0:04:52.8]} 2...
d5 {[%clk 0:04:57.6]} 3. exd5 {[%clk 0:04:50.1]} 3... exd5 {[%clk 0:04:56.7]} 4.
Nf3 {[%clk 0:04:50]} 4... Nc6 {[%clk 0:04:55.9]} 5. Bd3 {[%clk 0:04:49.5]} 5...
Be6 {[%clk 0:04:55.3]} 6. O-O {[%clk 0:04:48.9]} 6... Bd6 {[%clk 0:04:54.8]} 7.
Re1 {[%clk 0:04:45.1]} 7... Nge7 {[%clk 0:04:54.3]} 8. c4 {[%clk 0:04:43.5]}
8... dxc4 {[%clk 0:04:53.4]} 9. Bc2 {[%clk 0:04:39.8]} 9... Qd7 {[%clk
0:04:51.6]} 10. d5 {[%clk 0:04:35.1]} 10... Nxd5 {[%clk 0:04:48.7]} 11. Qxd5
{[%clk 0:04:32.4]} 11... Bxh2+ {[%clk 0:04:47]} 12. Kxh2 {[%clk 0:04:24.2]}
12... Qxd5 {[%clk 0:04:46.9]} 13. Be4 {[%clk 0:04:21.5]} 13... Qh5+ {[%clk
0:04:45.9]} 14. Kg1 {[%clk 0:04:19.8]} 14... O-O-O {[%clk 0:04:45.8]} 15. Be3
{[%clk 0:04:17.5]} 15... Bd5 {[%clk 0:04:44]} 16. Bxd5 {[%clk 0:04:15]} 16...
Rxd5 {[%clk 0:04:43.9]} 17. Nc3 {[%clk 0:04:14.1]} 17... Rf5 {[%clk 0:04:43]}
18. Rad1 {[%clk 0:04:06.5]} 18... Rxf3 {[%clk 0:04:39.8]} 19. gxf3 {[%clk
0:04:06.4]} 19... Ne5 {[%clk 0:04:39.2]} 20. f4 {[%clk 0:04:01.1]} 20... Nf3+
{[%clk 0:04:38]} 21. Kf1 {[%clk 0:03:59.6]} 21... Re8 {[%clk 0:04:31.3]} 0-1

[Event "Live Chess"]
[Site "Chess.com"]
[Date "2023.05.20"]
[Round "-"]
[White "Jeffaroow"]
[Black "Conradical12"]
[Result "0-1"]
[WhiteElo "468"]
[BlackElo "1580"]
[TimeControl "300"]
[EndTime "13:35:27 PDT"]
[Termination "Conradical12 won by resignation"]

1. e4 {[%clk 0:04:43.1]} 1... e5 {[%clk 0:04:57.5]} 2. Nf3 {[%clk 0:04:42.1]}
2... Nc6 {[%clk 0:04:55.7]} 3. d4 {[%clk 0:04:40.9]} 3... exd4 {[%clk
0:04:52.2]} 4. Nxd4 {[%clk 0:04:39.8]} 4... Nf6 {[%clk 0:04:51.5]} 5. Nxc6
{[%clk 0:04:37.9]} 5... bxc6 {[%clk 0:04:50.3]} 6. Nc3 {[%clk 0:04:37.1]} 6...
Bc5 {[%clk 0:04:48.1]} 7. Bd3 {[%clk 0:04:33.4]} 7... d6 {[%clk 0:04:47.2]} 8.
O-O {[%clk 0:04:28.7]} 8... Ng4 {[%clk 0:04:46.5]} 9. h3 {[%clk 0:04:12.8]} 9...
h5 {[%clk 0:04:45.6]} 10. hxg4 {[%clk 0:04:11.1]} 10... hxg4 {[%clk 0:04:45.5]}
11. Na4 {[%clk 0:04:06.9]} 11... Qh4 {[%clk 0:04:43.1]} 0-1

[Event "Live Chess"]
[Site "Chess.com"]
[Date "2023.05.20"]
[Round "-"]
[White "Jonmill"]
[Black "weibs440"]
[Result "1-0"]
[WhiteElo "1250"]
[BlackElo "927"]
[TimeControl "300"]
[EndTime "13:35:44 PDT"]
[Termination "Jonmill won on time"]

1. e4 {[%clk 0:04:57.7]} 1... d6 {[%clk 0:04:56.4]} 2. Nc3 {[%clk 0:04:55.5]}
2... Nf6 {[%clk 0:04:55.1]} 3. d4 {[%clk 0:04:51]} 3... e5 {[%clk 0:04:53.4]} 4.
dxe5 {[%clk 0:04:39]} 4... dxe5 {[%clk 0:04:52]} 5. Qxd8+ {[%clk 0:04:32.6]}
5... Kxd8 {[%clk 0:04:51.9]} 6. Nf3 {[%clk 0:04:31.6]} 6... Bd6 {[%clk
0:04:26.5]} 7. Ng5 {[%clk 0:04:25.9]} 7... Ke7 {[%clk 0:04:19.7]} 8. Bc4 {[%clk
0:04:13.3]} 8... Rf8 {[%clk 0:04:10.8]} 9. Be3 {[%clk 0:04:03.7]} 9... c6 {[%clk
0:03:56.8]} 10. O-O-O {[%clk 0:03:59.4]} 10... b5 {[%clk 0:03:51.8]} 11. Bb3
{[%clk 0:03:53]} 11... b4 {[%clk 0:03:43.8]} 12. Ne2 {[%clk 0:03:32]} 12... h6
{[%clk 0:03:38.1]} 13. Nxf7 {[%clk 0:03:25.5]} 13... Rxf7 {[%clk 0:03:36.1]} 14.
Bxf7 {[%clk 0:03:24.2]} 14... Kxf7 {[%clk 0:03:35]} 15. Rxd6 {[%clk 0:03:23.9]}
15... Nxe4 {[%clk 0:03:29.3]} 16. Rd8 {[%clk 0:03:20.1]} 16... Na6 {[%clk
0:03:12.4]} 17. f3 {[%clk 0:03:08.8]} 17... Nf6 {[%clk 0:03:04.6]} 18. Ng3
{[%clk 0:02:51.2]} 18... Bb7 {[%clk 0:02:53.3]} 19. Rxa8 {[%clk 0:02:49.6]}
19... Bxa8 {[%clk 0:02:52.6]} 20. Bxa7 {[%clk 0:02:40.8]} 20... Nd5 {[%clk
0:02:39.5]} 21. Rd1 {[%clk 0:02:23.7]} 21... Ke6 {[%clk 0:02:13.5]} 22. Ne4
{[%clk 0:02:19]} 22... g5 {[%clk 0:01:55.8]} 23. Nc5+ {[%clk 0:02:13.2]} 23...
Nxc5 {[%clk 0:01:49.4]} 24. Bxc5 {[%clk 0:02:12.9]} 24... Bb7 {[%clk 0:01:41]}
25. g3 {[%clk 0:02:03.9]} 25... h5 {[%clk 0:01:32.9]} 26. Re1 {[%clk 0:02:02.7]}
26... Ba6 {[%clk 0:01:18.6]} 27. f4 {[%clk 0:01:53.9]} 27... gxf4 {[%clk
0:01:17]} 28. gxf4 {[%clk 0:01:49.8]} 28... Nxf4 {[%clk 0:01:14.3]} 29. Bd4
{[%clk 0:01:46.7]} 29... b3 {[%clk 0:00:56]} 30. Rxe5+ {[%clk 0:01:39.4]} 30...
Kd6 {[%clk 0:00:48.3]} 31. axb3 {[%clk 0:01:30.3]} 31... Ne6 {[%clk 0:00:41.1]}
32. Bc3 {[%clk 0:01:20.5]} 32... c5 {[%clk 0:00:26.5]} 33. Rxh5 {[%clk
0:01:15.9]} 33... Be2 {[%clk 0:00:18.7]} 34. Rh6 {[%clk 0:01:07.8]} 34... Kd5
{[%clk 0:00:13.7]} 35. Kd2 {[%clk 0:01:03.6]} 35... Nf4 {[%clk 0:00:08.9]} 36.
Rh4 {[%clk 0:00:39.3]} 36... Ke4 {[%clk 0:00:00.1]} 37. Rxf4+ {[%clk 0:00:34.7]}
1-0

[Event "Live Chess"]
[Site "Chess.com"]
[Date "2023.05.20"]
[Round "-"]
[White "Olisingapore"]
[Black "JormaIbo"]
[Result "1-0"]
[WhiteElo "1878"]
[BlackElo "446"]
[TimeControl "300"]
[EndTime "13:35:51 PDT"]
[Termination "Olisingapore won on time"]

1. d4 {[%clk 0:04:56.6]} 1... d5 {[%clk 0:04:58.6]} 2. c4 {[%clk 0:04:55.9]}
2... e6 {[%clk 0:04:57.6]} 3. Nf3 {[%clk 0:04:55.4]} 3... Nf6 {[%clk 0:04:55.3]}
4. g3 {[%clk 0:04:54.9]} 4... b6 {[%clk 0:04:32.8]} 5. Bg2 {[%clk 0:04:51.5]}
5... Bb7 {[%clk 0:04:29.1]} 6. O-O {[%clk 0:04:48.9]} 6... Be7 {[%clk 0:04:21]}
7. Qc2 {[%clk 0:04:42.4]} 7... Nbd7 {[%clk 0:04:04.1]} 8. cxd5 {[%clk
0:04:39.2]} 8... Bxd5 {[%clk 0:03:43.9]} 9. Nc3 {[%clk 0:04:30.8]} 9... Bb7
{[%clk 0:03:20.5]} 10. e4 {[%clk 0:04:28.9]} 10... O-O {[%clk 0:03:12.2]} 11.
Ng5 {[%clk 0:04:24.5]} 11... e5 {[%clk 0:02:45.1]} 12. Nf3 {[%clk 0:03:46]}
12... exd4 {[%clk 0:02:07.8]} 13. Nxd4 {[%clk 0:03:45.9]} 13... Ne5 {[%clk
0:01:48]} 14. Rd1 {[%clk 0:03:37.9]} 14... Bc5 {[%clk 0:01:31]} 15. Ne6 {[%clk
0:03:32.2]} 15... Qe7 {[%clk 0:01:23.5]} 16. Nxf8 {[%clk 0:03:28.4]} 16... Qxf8
{[%clk 0:01:15]} 17. Bf4 {[%clk 0:03:26.5]} 17... Bd6 {[%clk 0:00:54]} 18. Nd5
{[%clk 0:03:17.3]} 18... Nxd5 {[%clk 0:00:41.5]} 19. exd5 {[%clk 0:03:17.2]}
19... f6 {[%clk 0:00:19.4]} 20. Be4 {[%clk 0:03:04.5]} 1-0